[Event "13th KIIT Festival-A 2022"]
[Site "Bhubaneswar"]
[Date "2022.05.22"]
[Round "1.14"]
[White "Nitin, S.."]
[Black "Shounak Mazumder"]
[Result "1-0"]
[ECO "C46"]
[WhiteElo "2399"]
[BlackElo "1709"]
[Annotator "TA"]
[PlyCount "95"]
[EventDate "2022.05.15"]
[EventType "swiss"]
[EventCountry "IND"]
[SourceTitle "playchess.com"]
[Source "ChessBase"]
[SourceQuality "1"]
[TimeControl "5400+30"]

{[%evp 15,95,33,31,19,66,70,59,45,37,39,72,66,88,85,94,82,126,130,166,167,232,207,266,327,325,332,312,308,313,154,335,353,325,336,337,345,363,361,359,350,353,350,341,311,483,483,457,404,389,380,823,812,745,593,738,738,723,716,778,755,1710,1684,1506,1278,2342,2558,12839,12839,12841,12841,12842,12842,12843,12843,12845,12846,12846,12847,12847,12847,12848,12848]} 1. e4 {[%emt 0:00:34]} e5 {[%emt 0:00:10]} 2. Nf3 {[%emt 0:00:08]} Nc6 {[%emt 0:00:07]} 3. Nc3 {[%emt 0:00:29]} Bc5 {[%emt 0:04:01]} 4. Nxe5 {[%emt 0:00:41]} Nxe5 {[%emt 0:00:10]} 5. d4 {[%emt 0:00:08]} Bd6 {[%emt 0:00:04]} 6. dxe5 {[%emt 0:00:11]} Bxe5 {[%emt 0:00:05]} 7. f4 {[%emt 0:00:09]} Bxc3+ {[%emt 0:01:06]} 8. bxc3 {[%emt 0:00:12]} d6 {[%emt 0:00:37]} 9. Bd3 {[%emt 0:03:14] The main line 9.Bd3 scores better than 9.Bc4. C46: 3 Nc3: Unusual Black 3rd moves.} Nf6 {[%emt 0:12:32]} (9... Qh4+ $11 10. g3 Qh3) 10. O-O $14 {[%emt 0:01:19]} O-O {[%emt 0:01:18]} 11. Qf3 {[%emt 0:01:21] White is slightly better.} (11. e5 $5 {[%cal Re5f6]} Nd5 12. Bxh7+ $1 Kxh7 13. Qxd5 $11) 11... Re8 {[%emt 0:12:14] Prevents e5.} ({Don't do} 11... Bg4 12. Qg3 Bd7 13. e5 $16) 12. c4 {[%emt 0:03:11]} c6 {[%emt 0:31:23]} 13. Rb1 {[%emt 0:04:05] [#]} Qe7 $146 {[%emt 0:01:42][%cal Rf6e4]} ({Predecessor:} 13... Qc7 14. Bb2 Nd7 15. Qg3 f6 16. Kh1 Rf8 17. e5 fxe5 18. fxe5 Rxf1+ 19. Rxf1 Nxe5 {1-0 (27) Cantero,R (2055)-Laperuta,R (1566) Florianopolis 2019}) 14. Re1 {[%emt 0:01:33]} d5 {[%emt 0:06:00]} 15. cxd5 {[%emt 0:00:24]} Nxd5 {[%emt 0:00:30]} 16. Bd2 {[%cal Bc1d2,Bd2e3,Be3b6][%mdl 32]} Nb6 {[%emt 0:00:30]} 17. e5 $1 {[%emt 0:01:00]} Be6 {[%emt 0:00:30] [#]} (17... Bd7 {might work better.} 18. a4 g6) 18. f5 $1 $18 {[%emt 0:00:30][%cal Bf4f5,Bf5f6][%mdl 32]} Bxa2 {[%emt 0:00:30] [#]} 19. f6 $1 {[%emt 0:00:30]} Qc5+ {[%emt 0:00:30]} 20. Be3 {[%emt 0:00:30]} Qxe5 {[%emt 0:00:30]} 21. Bxb6 {[%emt 0:00:30] Really sharp! A strong pair of Bishops.} Qxf6 {[%emt 0:00:30]} 22. Rxe8+ $40 {[%emt 0:00:30][%mdl 128] White attacks with force.} Rxe8 {[%emt 0:00:30]} 23. Qxf6 {[%emt 0:00:30]} gxf6 {[%emt 0:00:30]} 24. Ra1 {[%emt 0:00:30]} axb6 {[%emt 0:00:30]} 25. Rxa2 {[%emt 0:00:30][%mdl 4096] Endgame KRB-KR} b5 {[%emt 0:00:30]} 26. Kf2 {[%emt 0:00:30]} Kg7 {[%emt 0:00:30]} 27. Kf3 {[%emt 0:00:30]} h6 {[%emt 0:00:30]} 28. Be4 {[%emt 0:00:30]} Kf8 {[%emt 0:00:30]} 29. Kf4 {[%emt 0:00:30]} Kg7 {[%emt 0:00:30]} (29... Re7 {is a better defense.} 30. Ra8+ Kg7) 30. Ra7 {[%emt 0:00:30]} Rb8 {[%emt 0:00:30]} 31. c3 {[%emt 0:00:30][%cal Bc2c3,Bc3c4][%mdl 32]} Kf8 {[%emt 0:00:30]} 32. Kf5 {[%emt 0:00:30]} Ke7 $2 {[%emt 0:00:30]} (32... Kg7 33. g3 h5) 33. Bxc6 {[%emt 0:00:30] White is clearly winning.} Kd6 {[%emt 0:00:30]} 34. Bxb5 {[%emt 0:00:30]} Kc5 {[%emt 0:00:30]} 35. c4 {[%emt 0:00:30]} Kb6 {[%emt 0:00:30]} 36. Ra2 {[%emt 0:00:30]} Rc8 {[%emt 0:00:30]} 37. Kxf6 {[%emt 0:00:30]} Rc7 {[%emt 0:00:30]} 38. Re2 {[%emt 0:00:30]} Rc5 {[%emt 0:00:30]} 39. Re5 {[%emt 0:00:30] Strongly threatening Rxc5.} Rc7 {[%emt 0:00:30]} 40. g4 {[%emt 0:00:30]} Ka7 {[%emt 0:00:30]} 41. h4 {[%emt 0:00:30][%cal Bh2h4,Bh4g5,Bg5g6,Bg6g7][%mdl 32]} Kb6 {[%emt 0:00:30]} 42. g5 {[%emt 0:00:30]} hxg5 {[%emt 0:00:30]} 43. hxg5 {[%emt 0:00:30]} Rc8 {[%emt 0:00:30]} 44. Kxf7 {[%emt 0:00:30]} Rd8 {[%emt 0:00:30]} 45. g6 {[%emt 0:00:30]} Rd1 {[%emt 0:00:30]} 46. g7 {[%emt 0:00:30]} Rf1+ {[%emt 0:00:30]} 47. Kg6 {[%emt 0:00:30]} Rg1+ {[%emt 0:00:30]} 48. Rg5 {[%emt 0:00:30] Black got outplayed after the opening.  Weighted Error Value: White=0.19 (very precise) /Black=0.30} 1-0

[Event "13th KIIT Festival-A 2022"]
[Site "Bhubaneswar"]
[Date "2022.05.22"]
[Round "1.16"]
[White "Gusain, Himal"]
[Black "Arnab Debnath"]
[Result "1-0"]
[ECO "D61"]
[WhiteElo "2396"]
[BlackElo "1691"]
[Annotator "TA"]
[PlyCount "75"]
[EventDate "2022.05.15"]
[EventType "swiss"]
[EventCountry "IND"]
[SourceTitle "playchess.com"]
[Source "ChessBase"]
[SourceQuality "1"]
[TimeControl "5400+30"]

{[%evp 17,75,22,23,12,37,17,81,73,102,46,52,39,83,77,76,76,73,73,82,74,98,107,115,86,92,88,97,91,334,327,315,272,438,434,457,451,545,416,403,314,314,308,292,298,490,507,507,506,487,477,29975,29975,29979,29980,29979,29981,29981,29982,29981,29982]} 1. d4 {[%emt 0:00:08]} d5 {[%emt 0:00:08]} 2. c4 {[%emt 0:00:10]} e6 {[%emt 0:00:05]} 3. Nc3 {[%emt 0:00:07]} Nf6 {[%emt 1:31:47]} 4. Bg5 {[%emt 0:00:35]} Be7 {[%emt 0:00:00]} 5. Nf3 {[%emt 0:00:09]} c6 {[%emt 0:00:00]} 6. e3 {[%emt 0:00:23]} Nbd7 {[%emt 0:00:00]} 7. Qc2 {[%emt 0:00:57]} O-O {[%emt 0:00:00]} 8. Bd3 {[%emt 0:00:09]} dxc4 {[%emt 0:00:00]} 9. Bxc4 {[%emt 0:00:07]} b5 {[%emt 0:00:00]} 10. Bd3 {[%emt 0:00:29] D61: Queen's Gambit Declined: Classical: 7 Qc2.} h6 {[%emt 0:00:00]} 11. Bh4 {[%emt 0:04:49]} (11. Bxf6 $5 Nxf6 12. Ne4 $11) 11... Nd5 {[%emt 0:00:00]} (11... Bb7 $11 {keeps the balance.}) 12. Bxe7 $16 {[%emt 0:00:42] White is better.} Qxe7 {[%emt 0:00:00]} 13. a3 {[%emt 0:00:57] Prevents Nb4.} (13. Nxd5 $16 cxd5 14. O-O) 13... a6 {[%emt 0:00:00] [#]} 14. Rc1 $146 {[%emt 0:03:43]} ({Predecessor:} 14. O-O Bb7 15. Rfc1 Nxc3 16. Qxc3 Rfc8 17. b4 Ra7 18. Nd2 e5 19. Bf5 Rd8 20. Nb3 {½-½ (51) Pilarte,R (2069)-Flores,M (1879) Managua 2021}) 14... Bb7 {[%emt 0:00:00]} 15. Ne4 {[%emt 0:00:08]} e5 {[%emt 0:00:00]} 16. Nc5 {[%emt 0:00:58]} Nxc5 {[%emt 0:00:00]} 17. Qxc5 {[%emt 0:00:06]} exd4 {[%emt 0:00:00]} 18. Nxd4 {[%emt 0:00:51]} (18. Qxd4 $6 Rfd8 $11) 18... Qg5 {[%emt 0:00:00]} 19. O-O {[%emt 0:00:34]} Rfe8 {[%emt 0:00:00]} 20. Rfe1 {[%emt 0:00:37]} Rad8 {[%emt 0:00:00]} 21. g3 {[%emt 0:00:14]} (21. Nxc6 Rd7 $14) 21... Nf4 22. Qxg5 {[%emt 0:00:30]} hxg5 {This move loses the game for Black.} (22... Nh3+ $16 {is a better defense.} 23. Kf1 Nxg5) 23. exf4 $18 {[%emt 0:00:30]} (23. gxf4 c5 $16) 23... Rxe1+ 24. Rxe1 {[%emt 0:00:30][%cal Of4g5]} g6 $2 {[#]} (24... Kf8 25. Nb3 (25. fxg5 Rxd4 26. Be4 a5 $16) (25. Re4 c5 $17) 25... Rxd3) 25. Nb3 $1 {[%emt 0:00:30]} Rxd3 {[%mdl 4096] Endgame KRB-KRN} (25... gxf4 26. Nc5) 26. Nc5 {[%emt 0:00:30]} Rd2 27. b4 {[%emt 0:00:30]} gxf4 28. Nxb7 {[%emt 0:00:30] KRN-KR} Ra2 29. Nd8 {[%emt 0:00:30]} ({Don't do} 29. gxf4 Rxa3 30. Nd8 Rc3 31. Re8+ Kg7) 29... Rxa3 30. Nxc6 {[%emt 0:00:30]} f3 $2 (30... fxg3 {was necessary.} 31. hxg3 Rc3) 31. h4 {[%emt 0:00:30]} Rc3 32. Nb8 {[%emt 0:00:30]} Ra3 33. Re3 {[%emt 0:00:30]} Rxe3 (33... Ra1+ $18 34. Kh2 a5 35. bxa5 Rxa5 36. Rxf3 Ra8) 34. fxe3 {[%emt 0:00:30] White mates.} a5 35. bxa5 {[%emt 0:00:30]} b4 36. Nc6 {[%emt 0:00:30]} b3 {[#]} 37. Ne7+ $1 {[%emt 0:00:30]} Kf8 38. Nd5 {[%emt 0:00:30] Weighted Error Value: White=0.14 (very precise) /Black=0.66} 1-0

[Event "13th KIIT Festival-A 2022"]
[Site "Bhubaneswar"]
[Date "2022.05.22"]
[Round "1.17"]
[White "Shadhursshaan R"]
[Black "Audi Ameya"]
[Result "0-1"]
[ECO "E73"]
[WhiteElo "1690"]
[BlackElo "2389"]
[Annotator "TA"]
[PlyCount "96"]
[EventDate "2022.05.15"]
[EventType "swiss"]
[EventCountry "IND"]
[SourceTitle "playchess.com"]
[Source "ChessBase"]
[SourceQuality "1"]
[TimeControl "5400+30"]

{[%evp 13,96,19,30,41,39,0,0,13,14,17,19,-16,-20,-12,-15,-26,11,8,12,12,12,8,8,8,8,8,8,8,46,31,20,15,23,0,0,6,6,0,0,0,0,0,-10,-16,-13,-26,-27,-21,0,0,0,-20,0,0,0,0,31,-14,0,0,0,0,0,0,0,0,0,0,0,0,10,10,10,0,0,0,0,10,25,0,32,0,0,-59,0]} 1. d4 {[%emt 0:00:03]} Nf6 {[%emt 0:00:06]} 2. c4 {[%emt 0:00:04]} g6 {[%emt 0:00:31]} 3. Nc3 {[%emt 0:00:13]} Bg7 {[%emt 0:00:10]} 4. e4 {[%emt 0:00:07]} d6 {[%emt 0:00:04]} 5. Be2 {[%emt 0:00:08]} O-O {[%emt 0:00:21]} 6. h4 {[%emt 0:00:20]} c5 {[%emt 0:03:31] 6...c5 scores better than 6...h5.} 7. d5 {[%emt 0:00:25]} b5 {[%emt 0:00:46]} 8. cxb5 {[%emt 0:04:35] E73: King's Indian: Averbakh Variation without 6...c5.} a6 {[%emt 0:00:02]} 9. Bd2 {[%emt 0:02:15]} axb5 {[%emt 0:16:54]} 10. Bxb5 {[%emt 0:00:21] [#] The position is equal.} Na6 $146 {[%emt 0:02:27][%cal Bb8a6,Ba6c7,Bc7e6,Be6d4][%mdl 32]} ({Predecessor:} 10... Ba6 11. a4 Nbd7 12. Nf3 Ng4 13. O-O Bxb5 14. axb5 Rxa1 15. Qxa1 Nde5 16. Nxe5 Bxe5 {0-1 (33) Meeres,M (2260)-Kaufman,L (2415) Philadelphia 1997}) 11. Nf3 {[%emt 0:01:50]} Nc7 {[%emt 0:00:24]} 12. Be2 {[%emt 0:12:45]} e6 {[%emt 0:04:26]} 13. dxe6 {[%emt 0:02:00]} Nxe6 {[%emt 0:00:03]} 14. O-O {[%emt 0:00:23]} Nd4 {[%emt 0:00:25]} 15. Re1 {[%emt 0:18:07]} Re8 {[%emt 0:02:50]} 16. Bg5 {[%emt 0:07:59]} h6 {[%emt 1:05:30]} 17. Bxf6 {[%emt 0:01:01]} Qxf6 {[%emt 0:00:00]} 18. Nxd4 {[%emt 0:01:50]} cxd4 {[%emt 0:00:00]} 19. Nd5 {[%emt 0:45:34]} Qxh4 20. g3 (20. Nc7 $2 {[#]} Be5 $1 21. f4 Bxf4 $1 $19) 20... Qd8 21. Bb5 Re5 22. f4 Re6 (22... Rh5 {keeps more tension.} 23. a4 Rb8 24. Ra3 Bd7) 23. Qc2 {And now Qc7 would win.} Rb8 24. a4 Bb7 25. Bc4 Re8 26. Bb5 Bxd5 27. exd5 ({But not} 27. Bxe8 $2 Bb3 28. Qc6 Qxe8 29. Qxd6 d3 30. Qxd3 Bxb2 $19) 27... Re3 28. Rxe3 dxe3 29. Rc1 Qa5 30. Kg2 Bd4 31. Rd1 Qb4 32. Kf3 Bc5 ({Don't play} 32... Bxb2 33. Rb1 e2 34. Kxe2 $16) 33. Qc3 Qxc3 $1 (33... e2 34. Re1 $16) 34. bxc3 $11 {[%mdl 4096] Endgame KRB-KRB} f5 35. c4 Kg7 36. a5 Kf6 37. Rh1 h5 38. a6 Ba7 39. Re1 Ke7 40. Rb1 Kd8 41. Rb3 Kc7 42. Ke2 Bc5 43. Kd3 Ra8 44. Rb1 Rb8 45. Ra1 Ba7 46. Re1 Bc5 47. Kc3 Kb6 48. Bc6 (48. Ra1 $11) 48... Ka7 {[%mdl 32768] Weighted Error Value: White=0.10 (very precise) /Black=0.07 (flawless) . Sensor Board Error (Ke4/e5)?} ({Don't take} 48... Kxa6 49. Ra1+ Kb6 50. Rb1+ Kc7 51. Rxb8 Kxb8 52. Kd3 $14) (48... Rg8 $15) 0-1

[Event "13th KIIT Festival-A 2022"]
[Site "Bhubaneswar"]
[Date "2022.05.23"]
[Round "2.1"]
[White "Amonatov, Farrukh"]
[Black "Hegde, Ravi Gopal"]
[Result "1-0"]
[ECO "B15"]
[WhiteElo "2622"]
[BlackElo "2001"]
[Annotator "TA"]
[PlyCount "75"]
[EventDate "2022.05.15"]
[EventType "swiss"]
[EventCountry "IND"]
[SourceTitle "playchess.com"]
[Source "ChessBase"]
[SourceQuality "1"]
[TimeControl "5400+30"]

{[%evp 16,75,19,6,35,33,61,15,42,42,51,41,65,58,71,63,70,61,83,96,79,98,86,20,29,19,28,27,22,0,7,0,125,133,177,127,135,121,127,104,129,80,400,392,375,245,348,350,318,343,398,394,387,388,373,341,441,408,408,386,448,431]} 1. e4 {[%emt 0:00:05]} g6 {[%emt 0:00:37]} 2. d4 {[%emt 0:00:05]} Bg7 {[%emt 0:00:22]} 3. Nf3 {[%emt 0:00:05]} c6 {[%emt 0:00:52]} 4. Nc3 {[%emt 0:00:07]} d5 {[%emt 0:00:13]} 5. h3 {[%emt 0:00:12]} dxe4 {[%emt 0:00:57]} 6. Nxe4 {[%emt 0:00:06]} Nf6 {[%emt 0:00:20]} 7. Nxf6+ {[%emt 0:00:21]} exf6 {[%emt 0:00:08]} 8. Bc4 {[%emt 0:00:19]} O-O {[%emt 0:01:25]} 9. O-O {[%emt 0:00:06] Active counter play!} Qd6 {[%emt 0:00:41] B15: Caro-Kann: 3 Nc3: 3...g6 and 3...dxe4 4 Nxe4 Nf6 5 Nxf6+ exf6.} 10. Re1 {[%emt 0:00:19]} Nd7 {[%emt 0:00:09]} 11. Bb3 {[%emt 0:00:33] [#]} (11. a4 $14) 11... Rd8 $146 {[%emt 0:03:40][%cal Od7c5] The position is equal.} ({Predecessor:} 11... b5 12. a4 b4 13. c4 c5 14. Be3 cxd4 15. Nxd4 Nc5 16. Bc2 Ne6 17. Nf5 Qxd1 {½-½ (31) Plachetka,J (2373)-Schwarhofer,C (2378) Austria 2016}) 12. Be3 {[%emt 0:02:28]} Nf8 {[%emt 0:00:18]} 13. Qd2 {[%emt 0:00:06]} Be6 {[%emt 0:04:28]} 14. c4 {[%emt 0:05:45]} g5 {[%emt 0:00:36]} 15. d5 {[%emt 0:01:31]} cxd5 {[%emt 0:08:43]} 16. cxd5 {[%emt 0:01:14]} Bxd5 {[%emt 0:01:52]} 17. Rad1 {[%emt 0:02:47]} Bxb3 {[%emt 0:00:14]} 18. Qxd6 {[%emt 0:00:05]} Bxd1 {[%emt 0:00:14]} 19. Qg3 {[%emt 0:00:16]} ({Reject} 19. Rxd1 $6 Rxd6 20. Rxd6 Ne6 $11) (19. Qb4 $16) 19... Ne6 $11 {[%emt 0:00:21] Prevents Nd4.} 20. Nd2 {[%emt 0:15:42]} Bc2 {[%emt 0:01:37]} 21. Qf3 {[%emt 0:04:35]} f5 {[%emt 0:05:25] And now ...f4 would win.} 22. Rc1 {[%emt 0:02:43]} Rac8 {[%emt 0:01:01]} 23. Qxb7 {[%emt 0:02:57][%cal Oe3a7]} f4 {[%emt 0:06:15] [#]} (23... Rc7 $11 {keeps the balance.} 24. Qxc7 Nxc7 25. Rxc2 Ne6) 24. Bxa7 $1 $16 {[%emt 0:00:27]} h5 {[%emt 0:15:29] [#]} (24... Rc7 25. Qxc7) 25. Nf3 {[%emt 0:24:12]} ({Inferior is} 25. Bb6 Rb8 26. Qa7 Ra8 $11) (25. a4 $1 $18) 25... g4 {[%emt 0:11:12]} 26. hxg4 {[%emt 0:04:09]} hxg4 {[%emt 0:00:11]} 27. Ne1 {[%emt 0:01:24]} Rc7 {[%emt 0:00:07]} 28. Qb6 {[%emt 0:12:22]} ({White should play} 28. Qa6 Bg6 29. Rxc7 Nxc7 30. Qe2) 28... Rd1 $2 {[%emt 0:06:43][%mdl 8192] Black cannot hold the game after this.} (28... Bd4 $16 {is a better chance.} 29. Qxc7 Nxc7 30. Bxd4 (30. Rxc2 Bxa7 31. Rxc7 Bd4 $16) 30... Rxd4) 29. Rxd1 $18 {[%emt 0:00:36]} Bxd1 {[%emt 0:00:08]} 30. Bb8 {[%emt 0:06:12]} Rc8 {[%emt 0:03:19]} (30... Rc1 $142) 31. Qb7 {[%emt 0:02:15]} Rd8 {[%emt 0:00:40]} 32. Bc7 {[%emt 0:00:22]} Nxc7 {[%emt 0:01:55]} 33. Qxc7 {[%emt 0:00:07]} Rd4 {[%emt 0:00:35]} 34. Qc8+ {[%emt 0:00:45]} Bf8 {[%emt 0:00:15]} 35. Qc3 {[%emt 0:00:54]} Re4 {[%emt 0:03:14]} 36. Nd3 {[%emt 0:02:24]} g3 {[%emt 0:00:19]} 37. Qd2 {[%emt 0:01:25]} Be2 {[%emt 0:04:34]} 38. Nxf4 {[%emt 0:02:40] Weighted Error Value: White=0.19 (very precise) /Black=0.46} 1-0

[Event "13th KIIT Festival-A 2022"]
[Site "Bhubaneswar"]
[Date "2022.05.23"]
[Round "2.2"]
[White "Shaik Sumer Arsh"]
[Black "Paichadze, Luka"]
[Result "0-1"]
[ECO "E32"]
[WhiteElo "1999"]
[BlackElo "2567"]
[Annotator "TA"]
[PlyCount "74"]
[EventDate "2022.05.15"]
[EventType "swiss"]
[EventCountry "IND"]
[SourceTitle "playchess.com"]
[Source "ChessBase"]
[SourceQuality "1"]
[TimeControl "5400+30"]

{[%evp 13,74,0,0,0,0,0,0,0,0,0,2,-19,-14,-18,-6,-9,-18,-10,-15,-18,-8,-6,-12,-14,-6,-14,-19,-11,-18,-15,-37,-19,-34,-30,-31,-209,-206,-197,-170,-177,-178,-243,-226,-262,-254,-299,-201,-457,-460,-439,-459,-558,-538,-534,-554,-809,-802,-1454,-1443,-1912,-1911,-2824,-2320]} 1. d4 {[%emt 0:00:05]} Nf6 {[%emt 0:00:07]} 2. c4 {[%emt 0:00:07]} e6 {[%emt 0:00:05]} 3. Nc3 {[%emt 0:00:14]} Bb4 {[%emt 0:00:07]} 4. Qc2 {[%emt 0:00:26]} O-O {[%emt 0:01:33]} 5. e4 {[%emt 0:00:40]} d5 {[%emt 0:00:06]} 6. e5 {[%emt 0:00:11]} Ne4 {[%emt 0:00:07]} 7. Bd3 {[%emt 0:00:09]} c5 $1 {[%emt 0:00:11]} 8. Nge2 {[%emt 0:00:11] E32: Nimzo-Indian: Classical (4 Qc2): 4...0-0.} cxd4 {[%emt 0:00:26]} 9. Nxd4 {[%emt 0:00:10]} Nd7 {[%emt 0:00:27]} 10. Bf4 {[%emt 0:00:11] The position is equal.} Qh4 {[%emt 0:01:01]} 11. g3 {[%emt 0:00:10]} Qh5 {[%emt 0:00:07]} 12. h4 {[%emt 0:00:15]} Nxe5 {[%emt 0:19:54]} 13. Be2 {[%emt 0:00:24]} Ng4 {[%emt 0:00:08]} (13... Bxc3+ 14. bxc3 Ng4 15. Bxg4 (15. f3 e5 $17) 15... Qxg4 16. f3 $14) 14. Bxg4 {[%emt 0:00:17]} Qxg4 {[%emt 0:00:05]} 15. f3 {[%emt 0:00:17] [#]} Qh5 {[%emt 0:01:24][%cal Oe6e5]} 16. g4 {[%emt 0:00:12]} (16. fxe4 e5 17. cxd5 exd4 $17) 16... Qg6 {[%emt 0:00:05]} (16... Bxc3+ 17. bxc3 Qg6 18. fxe4 $14) 17. fxe4 {[%emt 0:00:24]} e5 $1 {[%emt 0:19:23]} 18. O-O-O {[%emt 0:21:48] Threatens to win with h5.} Bxc3 {[%emt 0:02:44]} ({Much less strong is} 18... exd4 19. h5 (19. Nxd5 Bd6 $14) 19... d3 20. Rxd3 $16 (20. hxg6 dxc2 21. gxh7+ Kh8 $11)) 19. Nf5 {[%emt 0:00:42]} Bxf5 {[%emt 0:09:55]} (19... Qxg4 20. Nh6+ gxh6 21. Rhg1 exf4 22. Qxc3 $16) 20. gxf5 {[%emt 0:00:10] [#]} Qa6 $36 {[%emt 0:03:26][%mdl 2048] Black has some pressure.} 21. Qxc3 {[%emt 0:37:45][%cal Oh1g1] Hoping for Rhg1!} d4 {[%emt 0:01:01]} 22. Qb3 {[%emt 0:02:51]} exf4 {[%emt 0:00:07]} 23. Rxd4 {[%emt 0:00:54]} Rad8 {[%emt 0:00:56] [#]} 24. Rhd1 $146 {[%emt 0:10:18] This move loses the game for White.} (24. Qd3 $1 $15 Rxd4 25. Qxd4) ({Predecessor:} 24. Qd3 Rxd4 25. Qxd4 Rc8 26. b3 Qxa2 27. Rd1 g6 28. f6 h5 29. Rd3 Qg2 30. Qd7 {1-0 (49) Xiong,J (2709)-Esipenko,A (2682) Chess.com INT 2020}) 24... Rxd4 $19 {[%emt 0:00:10]} 25. Rxd4 {[%emt 0:00:02][%mdl 4096] Endgame KQR-KQR} Qh6 {[%emt 0:03:20]} 26. Qf3 {[%emt 0:06:01]} Qxh4 {[%emt 0:02:08]} 27. Rd1 {[%emt 0:00:13]} (27. e5 $142) 27... Re8 {[%emt 0:02:09]} 28. Rg1 {[%emt 0:04:47]} Qe7 {[%emt 0:03:51]} 29. Rd1 {[%emt 0:08:58]} g5 {[%emt 0:03:30]} 30. Qh5 $2 {[%emt 0:02:09]} (30. fxg6 fxg6 31. Qxf4) 30... Qf6 {[%emt 0:01:59] Black is clearly winning.} 31. Qf3 {[%emt 0:02:40]} Rc8 {[%emt 0:03:00]} 32. Qe2 {[%emt 0:02:08]} b5 {[%emt 0:00:34]} 33. Kb1 {[%emt 0:00:26]} bxc4 {[%emt 0:00:21]} 34. Qc2 {[%emt 0:00:26]} f3 {[%emt 0:02:31]} 35. Rd5 {[%emt 0:00:33]} g4 {[%emt 0:01:36] Strongly threatening ...g3.} 36. e5 {[%emt 0:00:23]} Qg5 {[%emt 0:00:11] aiming for ...g3.} 37. f6 {[%emt 0:00:37]} Qg6 {[%emt 0:01:36] Weighted Error Value: White=0.68/Black=0.04 (flawless)} 0-1

[Event "13th KIIT Festival-A 2022"]
[Site "Bhubaneswar"]
[Date "2022.05.23"]
[Round "2.3"]
[White "Fedorov, Alexei"]
[Black "Pawar, Harshit"]
[Result "1-0"]
[ECO "B01"]
[WhiteElo "2529"]
[BlackElo "1961"]
[Annotator "TA"]
[PlyCount "29"]
[EventDate "2022.05.15"]
[EventType "swiss"]
[EventCountry "IND"]
[SourceTitle "playchess.com"]
[Source "ChessBase"]
[SourceQuality "1"]
[TimeControl "5400+30"]

{[%evp 11,29,50,47,46,81,87,109,108,105,100,106,104,181,184,243,245,337,338,485,477]} 1. e4 {[%emt 0:00:04]} d5 {[%emt 0:00:04]} 2. exd5 {[%emt 0:00:07]} Qxd5 {[%emt 0:00:04]} 3. Nc3 {[%emt 0:00:17]} Qa5 {[%emt 0:00:02]} 4. d4 {[%emt 0:00:41]} Nf6 {[%emt 0:00:19]} 5. Bd2 {[%emt 0:00:36]} c6 {[%emt 0:00:24]} 6. Bd3 {[%emt 0:01:59]} Bg4 {[%emt 0:06:17] [#]} 7. Ne4 $1 {[%emt 0:01:12] B01: Scandinavian Defence.} Qh5 {[%emt 0:08:55]} (7... Bxd1 8. Bxa5) 8. f3 {[%emt 0:11:16][%cal Bf2f3,Bf3g4,Bg4g5][%mdl 32] White is more active.} Nxe4 {[%emt 0:07:31]} 9. fxg4 {[%emt 0:05:14] White is better.} ({Don't take} 9. Bxe4 Bf5 $14) 9... Qd5 {[%emt 0:00:10]} 10. Be3 {[%emt 0:01:55] [#]} Nd7 $146 {[%emt 0:24:21]} ({Predecessor:} 10... e5 11. Qe2 Bb4+ 12. Kf1 Nf6 13. c4 Qd8 14. g5 Nfd7 15. Nf3 O-O 16. dxe5 Qe7 {0-1 (64) Briao,P (2117)-Sperandio,A (1992) ICCF email 2011}) 11. Nf3 {[%emt 0:01:32] Strongly threatening 0-0.} e5 {[%emt 0:02:56]} (11... Nef6 $16) 12. O-O $18 {[%emt 0:03:21] [#] c4 is the strong threat.} Nef6 {[%emt 0:10:42]} (12... Nd6 {might work better.}) 13. c4 {[%emt 0:03:26]} Qa5 {[%emt 0:01:31]} 14. g5 {[%emt 0:01:39]} Ng8 {[%emt 0:09:28]} (14... Ng4 {was called for.}) 15. Bf5 {[%emt 0:01:02] Black got outplayed after the opening.  Weighted Error Value: White=0.00 (flawless) /Black=0.54} 1-0